[Event "*** Titled Tuesday Blitz"]
[Site "Chess.com"]
[Date "2018.09.04"]
[Round "3"]
[White "Elshan1985"]
[Black "gmjlh"]
[Result "1-0"]
[WhiteElo "2724"]
[BlackElo "2704"]
[TimeControl "180+2"]
[EndTime "14:12:42 PDT"]
[Termination "Elshan1985 won on time"]

1. Nf3 {[%clk 0:03:01.9]} 1... d5 {[%clk 0:02:59.8]} 2. e3 {[%clk 0:03:02.6]}
2... Nf6 {[%clk 0:03:00.2]} 3. b3 {[%clk 0:03:03.3]} 3... e6 {[%clk 0:03:00.6]}
4. Bb2 {[%clk 0:03:04.6]} 4... Be7 {[%clk 0:03:01.6]} 5. c4 {[%clk 0:03:05.4]}
5... O-O {[%clk 0:03:02.4]} 6. d4 {[%clk 0:03:06.5]} 6... b6 {[%clk 0:03:00.5]}
7. Nbd2 {[%clk 0:03:06.9]} 7... Bb7 {[%clk 0:03:01.4]} 8. cxd5 {[%clk
0:03:08.3]} 8... exd5 {[%clk 0:03:02.1]} 9. Bd3 {[%clk 0:03:09.4]} 9... Ne4
{[%clk 0:03:00.7]} 10. Ne5 {[%clk 0:03:09.6]} 10... Nd7 {[%clk 0:03:00.3]} 11.
O-O {[%clk 0:03:08]} 11... Nxe5 {[%clk 0:02:28.4]} 12. dxe5 {[%clk 0:03:08.2]}
12... a5 {[%clk 0:02:16.4]} 13. Rc1 {[%clk 0:03:03.3]} 13... Nc5 {[%clk
0:02:11.7]} 14. Bb1 {[%clk 0:02:46.7]} 14... Ba6 {[%clk 0:02:08.7]} 15. Re1
{[%clk 0:02:46.7]} 15... Nd3 {[%clk 0:02:03.4]} 16. Bxd3 {[%clk 0:02:43.7]}
16... Bxd3 {[%clk 0:02:05.3]} 17. Nf3 {[%clk 0:02:43.3]} 17... Be4 {[%clk
0:01:44]} 18. Nd4 {[%clk 0:02:41]} 18... Bb4 {[%clk 0:01:45.3]} 19. Re2 {[%clk
0:02:36]} 19... c5 {[%clk 0:01:40.1]} 20. Nb5 {[%clk 0:02:23.7]} 20... Qg5
{[%clk 0:01:36.3]} 21. f4 {[%clk 0:02:24.6]} 21... Qg4 {[%clk 0:00:32.8]} 22. h3
{[%clk 0:01:16.6]} 22... Qg3 {[%clk 0:00:33.5]} 23. a3 {[%clk 0:01:16.3]} 23...
Bf3 {[%clk 0:00:24.5]} 24. Qf1 {[%clk 0:01:15.7]} 24... Bxe2 {[%clk 0:00:22.6]}
25. Qxe2 {[%clk 0:01:17.6]} 25... Rfd8 {[%clk 0:00:21]} 26. Nd6 {[%clk 0:01:08]}
26... Qg6 {[%clk 0:00:05.9]} 27. Rf1 {[%clk 0:00:56.7]} 27... a4 {[%clk
0:00:03.6]} 28. axb4 {[%clk 0:00:57.9]} 28... a3 {[%clk 0:00:04.1]} 29. Ba1
{[%clk 0:00:57.8]} 29... cxb4 {[%clk 0:00:04.6]} 30. f5 {[%clk 0:00:57.7]} 30...
Qh6 {[%clk 0:00:06]} 31. Qd3 {[%clk 0:00:46.5]} 31... a2 {[%clk 0:00:04.8]} 32.
Kh2 {[%clk 0:00:45.1]} 32... Ra5 {[%clk 0:00:04.5]} 33. f6 {[%clk 0:00:40.8]}
33... Qg6 {[%clk 0:00:02.9]} 34. Nf5 {[%clk 0:00:36.7]} 34... Re8 {[%clk
0:00:02.6]} 35. Ne7+ {[%clk 0:00:36.5]} 35... Rxe7 {[%clk 0:00:04]} 36. fxe7
{[%clk 0:00:37.8]} 36... Qe6 {[%clk 0:00:05.3]} 37. Qd4 {[%clk 0:00:27.6]} 37...
Qxe7 {[%clk 0:00:04.1]} 38. Qxb6 {[%clk 0:00:28.5]} 38... Ra8 {[%clk 0:00:05.3]}
39. Rc1 {[%clk 0:00:27.4]} 39... h6 {[%clk 0:00:05.9]} 40. Qd6 {[%clk
0:00:25.5]} 40... Qb7 {[%clk 0:00:06.6]} 41. e6 {[%clk 0:00:24.7]} 41... Ra6
{[%clk 0:00:02.9]} 42. exf7+ {[%clk 0:00:22.6]} 42... Kxf7 {[%clk 0:00:02.5]}
43. Rf1+ {[%clk 0:00:22.7]} 43... Kg8 {[%clk 0:00:03.4]} 44. Qf8+ {[%clk
0:00:23.6]} 44... Kh7 {[%clk 0:00:04.8]} 45. Rf7 {[%clk 0:00:24.2]} 1-0

[Event "*** Titled Tuesday Blitz"]
[Site "Chess.com"]
[Date "2018.09.04"]
[Round "3"]
[White "Anton_Demchenko"]
[Black "johnathan113"]
[Result "0-1"]
[WhiteElo "2758"]
[BlackElo "2602"]
[TimeControl "180+2"]
[EndTime "14:12:47 PDT"]
[Termination "johnathan113 won by resignation"]

1. e4 {[%clk 0:03:01.9]} 1... c5 {[%clk 0:03:00.9]} 2. Nf3 {[%clk 0:03:01.4]}
2... g6 {[%clk 0:03:01.9]} 3. d4 {[%clk 0:02:55.6]} 3... cxd4 {[%clk 0:03:03.8]}
4. Nxd4 {[%clk 0:02:57.4]} 4... Bg7 {[%clk 0:03:04.8]} 5. c4 {[%clk 0:02:58.7]}
5... Nc6 {[%clk 0:03:06.2]} 6. Be3 {[%clk 0:02:59.3]} 6... Qb6 {[%clk
0:03:07.5]} 7. Nb5 {[%clk 0:02:53.1]} 7... Qa5+ {[%clk 0:03:07.6]} 8. Bd2 {[%clk
0:02:18.2]} 8... Qd8 {[%clk 0:03:07.3]} 9. Bc3 {[%clk 0:02:13.4]} 9... Nf6
{[%clk 0:03:07.7]} 10. Nd2 {[%clk 0:02:09.3]} 10... O-O {[%clk 0:03:06.9]} 11.
Bd3 {[%clk 0:02:09]} 11... d6 {[%clk 0:02:59.6]} 12. O-O {[%clk 0:02:06.1]}
12... Be6 {[%clk 0:02:59.7]} 13. Rc1 {[%clk 0:01:32.4]} 13... a6 {[%clk
0:03:00.6]} 14. Nd4 {[%clk 0:01:19.1]} 14... Nxd4 {[%clk 0:03:01.8]} 15. Bxd4
{[%clk 0:01:20.1]} 15... Nd7 {[%clk 0:03:03.7]} 16. Bxg7 {[%clk 0:01:16.6]}
16... Kxg7 {[%clk 0:03:05.6]} 17. a3 {[%clk 0:00:58.4]} 17... a5 {[%clk
0:03:06.7]} 18. Nb1 {[%clk 0:00:55.9]} 18... Qb6 {[%clk 0:03:04.2]} 19. Qe2
{[%clk 0:00:44.3]} 19... Nc5 {[%clk 0:02:56.6]} 20. Rfd1 {[%clk 0:00:35]} 20...
Rfc8 {[%clk 0:02:56]} 21. Rc2 {[%clk 0:00:21.7]} 21... Qb3 {[%clk 0:02:48.4]}
22. Rc3 {[%clk 0:00:20.3]} 22... Qb6 {[%clk 0:02:38.5]} 23. Bc2 {[%clk
0:00:20.9]} 23... Qxb2 {[%clk 0:02:33.7]} 24. e5 {[%clk 0:00:19.9]} 24... dxe5
{[%clk 0:02:30.4]} 25. Qxe5+ {[%clk 0:00:19.6]} 25... Kg8 {[%clk 0:02:31.9]} 26.
h4 {[%clk 0:00:14.8]} 26... Nd7 {[%clk 0:02:22.2]} 27. Qe2 {[%clk 0:00:10.7]}
27... Nb6 {[%clk 0:02:15]} 28. Rb3 {[%clk 0:00:03.7]} 28... Bxc4 {[%clk
0:01:57.6]} 29. Rxb2 {[%clk 0:00:04]} 29... Bxe2 {[%clk 0:01:59.1]} 30. Re1
{[%clk 0:00:04.9]} 30... Nc4 {[%clk 0:01:57.2]} 31. Rxb7 {[%clk 0:00:05.8]}
31... Bg4 {[%clk 0:01:51]} 32. Rexe7 {[%clk 0:00:06.3]} 32... Be6 {[%clk
0:01:52.2]} 33. Bb3 {[%clk 0:00:07.2]} 33... a4 {[%clk 0:01:43.1]} 34. Bxc4
{[%clk 0:00:08.3]} 34... Rxc4 {[%clk 0:01:45]} 35. h5 {[%clk 0:00:05.6]} 35...
gxh5 {[%clk 0:01:46.9]} 36. Nd2 {[%clk 0:00:06.5]} 36... Rc3 {[%clk 0:01:48]}
37. Nf3 {[%clk 0:00:03.8]} 37... Bd5 {[%clk 0:01:25.4]} 38. Rbd7 {[%clk
0:00:04.2]} 38... Be6 {[%clk 0:01:25.7]} 39. Rb7 {[%clk 0:00:04.8]} 39... Rxa3
{[%clk 0:00:57.5]} 40. Ng5 {[%clk 0:00:05.4]} 40... Rb3 {[%clk 0:00:59.4]} 41.
Rbc7 {[%clk 0:00:05.7]} 41... a3 {[%clk 0:00:37.2]} 42. Nxe6 {[%clk 0:00:06]}
42... a2 {[%clk 0:00:39.1]} 43. Rc1 {[%clk 0:00:02.5]} 43... a1=Q {[%clk
0:00:41]} 44. Rxa1 {[%clk 0:00:03.2]} 44... Rxa1+ {[%clk 0:00:42.9]} 45. Kh2
{[%clk 0:00:05.1]} 45... fxe6 {[%clk 0:00:44.4]} 0-1

[Event "*** Titled Tuesday Blitz"]
[Site "Chess.com"]
[Date "2018.09.04"]
[Round "3"]
[White "VeraNebolsina"]
[Black "Thjop"]
[Result "1/2-1/2"]
[WhiteElo "2408"]
[BlackElo "2537"]
[TimeControl "180+2"]
[EndTime "14:12:54 PDT"]
[Termination "Game drawn by repetition"]

1. e4 {[%clk 0:03:01.9]} 1... e6 {[%clk 0:02:59.7]} 2. d4 {[%clk 0:03:00.6]}
2... d5 {[%clk 0:03:00.5]} 3. exd5 {[%clk 0:03:01.8]} 3... exd5 {[%clk
0:03:01.4]} 4. Nf3 {[%clk 0:03:02.7]} 4... Bg4 {[%clk 0:03:01.4]} 5. Bd3 {[%clk
0:02:59.1]} 5... Bd6 {[%clk 0:02:58.4]} 6. O-O {[%clk 0:02:56.8]} 6... Nc6
{[%clk 0:02:55.5]} 7. c3 {[%clk 0:02:52.2]} 7... Qd7 {[%clk 0:02:48.4]} 8. Re1+
{[%clk 0:02:52.5]} 8... Nge7 {[%clk 0:02:48.9]} 9. h3 {[%clk 0:02:44.6]} 9...
Bh5 {[%clk 0:02:44.9]} 10. Nbd2 {[%clk 0:02:45.3]} 10... O-O-O {[%clk
0:02:42.3]} 11. Qc2 {[%clk 0:02:45.3]} 11... Bg6 {[%clk 0:02:40.5]} 12. Ne5
{[%clk 0:02:41.6]} 12... Bxe5 {[%clk 0:02:31.5]} 13. dxe5 {[%clk 0:02:42.4]}
13... d4 {[%clk 0:02:13.1]} 14. Nf3 {[%clk 0:02:19.7]} 14... dxc3 {[%clk
0:01:56.5]} 15. Bxg6 {[%clk 0:02:20.3]} 15... cxb2 {[%clk 0:01:49.2]} 16. Bxb2
{[%clk 0:02:14.5]} 16... hxg6 {[%clk 0:01:42]} 17. e6 {[%clk 0:02:12]} 17...
fxe6 {[%clk 0:01:38.5]} 18. Rad1 {[%clk 0:02:10.7]} 18... Qe8 {[%clk 0:00:52.5]}
19. Rxe6 {[%clk 0:01:58.2]} 19... Rxd1+ {[%clk 0:00:48.8]} 20. Qxd1 {[%clk
0:01:59]} 20... Qf7 {[%clk 0:00:43.7]} 21. Qb3 {[%clk 0:01:59.5]} 21... Rd8
{[%clk 0:00:29.3]} 22. Be5 {[%clk 0:01:33.4]} 22... Nd5 {[%clk 0:00:24.3]} 23.
Rxc6 {[%clk 0:01:21]} 23... bxc6 {[%clk 0:00:24.7]} 24. Bg3 {[%clk 0:01:13.4]}
24... Qf5 {[%clk 0:00:22.9]} 25. Nd4 {[%clk 0:01:12.5]} 25... Qf6 {[%clk
0:00:17.6]} 26. Qa4 {[%clk 0:01:05.5]} 26... Nb6 {[%clk 0:00:17.7]} 27. Qxa7
{[%clk 0:01:03.1]} 27... Rd7 {[%clk 0:00:10.7]} 28. Nb3 {[%clk 0:00:50.5]} 28...
Qc3 {[%clk 0:00:11.5]} 29. Na5 {[%clk 0:00:46.3]} 29... Kd8 {[%clk 0:00:10.1]}
30. Qb7 {[%clk 0:00:44.9]} 30... c5 {[%clk 0:00:09.4]} 31. Nc6+ {[%clk
0:00:44.6]} 31... Ke8 {[%clk 0:00:10.8]} 32. Qb8+ {[%clk 0:00:44.3]} 32... Kf7
{[%clk 0:00:11.9]} 33. Ne5+ {[%clk 0:00:40.4]} 33... Ke7 {[%clk 0:00:12.3]} 34.
Nxg6+ {[%clk 0:00:32.8]} 34... Kf6 {[%clk 0:00:11.9]} 35. Be5+ {[%clk
0:00:32.6]} 35... Qxe5 {[%clk 0:00:13.1]} 36. Nxe5 {[%clk 0:00:33.4]} 36... Kxe5
{[%clk 0:00:15]} 37. Qe8+ {[%clk 0:00:33.7]} 37... Kd5 {[%clk 0:00:16.2]} 38.
Qg8+ {[%clk 0:00:34]} 38... Kd4 {[%clk 0:00:16.6]} 39. Qb3 {[%clk 0:00:29.5]}
39... c4 {[%clk 0:00:17.8]} 40. Qc2 {[%clk 0:00:30.4]} 40... c3 {[%clk 0:00:19]}
41. h4 {[%clk 0:00:30.4]} 41... Kc4 {[%clk 0:00:20.3]} 42. Qe2+ {[%clk
0:00:25.9]} 42... Kb4 {[%clk 0:00:18.3]} 43. Qe4+ {[%clk 0:00:26.4]} 43... Ka3
{[%clk 0:00:16.5]} 44. Qc2 {[%clk 0:00:27.4]} 44... Kb4 {[%clk 0:00:15.7]} 45.
a3+ {[%clk 0:00:28.5]} 45... Kc4 {[%clk 0:00:16.1]} 46. Qe4+ {[%clk 0:00:29.5]}
46... Kb3 {[%clk 0:00:15.6]} 47. Qb1+ {[%clk 0:00:29.6]} 47... Kxa3 {[%clk
0:00:15.6]} 48. Qa1+ {[%clk 0:00:30.8]} 48... Kb3 {[%clk 0:00:16.8]} 49. Qb1+
{[%clk 0:00:32.1]} 49... Kc4 {[%clk 0:00:17.9]} 50. Qe4+ {[%clk 0:00:32.9]}
50... Kb3 {[%clk 0:00:19]} 51. Qb1+ {[%clk 0:00:33.9]} 51... Kc4 {[%clk
0:00:19.8]} 52. Qe4+ {[%clk 0:00:35]} 52... Kb3 {[%clk 0:00:20.2]} 53. Qb1+
{[%clk 0:00:35.9]} 1/2-1/2

[Event "*** Titled Tuesday Blitz"]
[Site "Chess.com"]
[Date "2018.09.04"]
[Round "3"]
[White "TheRigos"]
[Black "lavr92"]
[Result "0-1"]
[WhiteElo "2418"]
[BlackElo "2590"]
[TimeControl "180+2"]
[EndTime "14:12:54 PDT"]
[Termination "lavr92 won by resignation"]

1. b3 {[%clk 0:03:01.9]} 1... e5 {[%clk 0:02:57.6]} 2. Bb2 {[%clk 0:03:03]} 2...
Nc6 {[%clk 0:02:58.4]} 3. e3 {[%clk 0:03:04.2]} 3... Nf6 {[%clk 0:02:56.4]} 4.
Bb5 {[%clk 0:03:05.8]} 4... Bd6 {[%clk 0:02:56.8]} 5. Na3 {[%clk 0:03:06.9]}
5... Na5 {[%clk 0:02:44.1]} 6. Be2 {[%clk 0:03:07.2]} 6... a6 {[%clk 0:02:40.8]}
7. c4 {[%clk 0:03:04.9]} 7... Qe7 {[%clk 0:02:37.4]} 8. Nc2 {[%clk 0:03:05.6]}
8... c5 {[%clk 0:02:36.1]} 9. g4 {[%clk 0:02:55.5]} 9... h6 {[%clk 0:02:34.5]}
10. h4 {[%clk 0:02:49.2]} 10... Bc7 {[%clk 0:02:22.5]} 11. Nh3 {[%clk
0:02:42.8]} 11... d5 {[%clk 0:02:15.9]} 12. cxd5 {[%clk 0:02:40.4]} 12... Nxd5
{[%clk 0:02:14]} 13. h5 {[%clk 0:02:06.3]} 13... Nc6 {[%clk 0:02:01.7]} 14. Bf3
{[%clk 0:02:01]} 14... Be6 {[%clk 0:02:00.2]} 15. d3 {[%clk 0:02:02.1]} 15...
Rd8 {[%clk 0:01:54.5]} 16. a3 {[%clk 0:01:57.3]} 16... O-O {[%clk 0:01:45.2]}
17. Kf1 {[%clk 0:01:56.7]} 17... Nf6 {[%clk 0:01:16.7]} 18. Qe2 {[%clk
0:01:52.5]} 18... Bxb3 {[%clk 0:01:11.9]} 19. g5 {[%clk 0:01:50]} 19... hxg5
{[%clk 0:01:05.8]} 20. Nxg5 {[%clk 0:01:50.5]} 20... Nh7 {[%clk 0:00:42.3]} 21.
Nxh7 {[%clk 0:01:18.3]} 21... Kxh7 {[%clk 0:00:44.2]} 22. e4 {[%clk 0:01:13.8]}
22... Nd4 {[%clk 0:00:23.9]} 23. Bxd4 {[%clk 0:01:03.1]} 23... exd4 {[%clk
0:00:25.8]} 24. Ne1 {[%clk 0:01:04.5]} 24... c4 {[%clk 0:00:18.7]} 25. Bg4
{[%clk 0:00:53.9]} 25... b5 {[%clk 0:00:15.2]} 26. Rg1 {[%clk 0:00:47]} 26...
Bf4 {[%clk 0:00:15.6]} 27. Bf5+ {[%clk 0:00:48.1]} 27... Kh8 {[%clk 0:00:16.6]}
28. Qf3 {[%clk 0:00:25.4]} 28... Bh6 {[%clk 0:00:17.3]} 29. Rb1 {[%clk
0:00:23.2]} 29... a5 {[%clk 0:00:15.9]} 30. Ng2 {[%clk 0:00:13.4]} 30... a4
{[%clk 0:00:16]} 31. Nf4 {[%clk 0:00:13.9]} 31... cxd3 {[%clk 0:00:13]} 32. Qg4
{[%clk 0:00:13.9]} 32... d2 {[%clk 0:00:09.6]} 33. Kg2 {[%clk 0:00:06.4]} 33...
Qg5 {[%clk 0:00:07.6]} 34. Qxg5 {[%clk 0:00:03.8]} 34... Bxg5 {[%clk 0:00:09.5]}
35. Nh3 {[%clk 0:00:05.7]} 35... Be7 {[%clk 0:00:08.3]} 36. Bg4 {[%clk
0:00:07.2]} 36... Bxa3 {[%clk 0:00:08.7]} 37. Nf4 {[%clk 0:00:06.3]} 37... Bd6
{[%clk 0:00:09.4]} 38. Nd3 {[%clk 0:00:07.2]} 38... Bc2 {[%clk 0:00:10.1]} 39.
Be2 {[%clk 0:00:04.7]} 39... Bxb1 {[%clk 0:00:09.7]} 40. Rxb1 {[%clk 0:00:06.6]}
40... Rb8 {[%clk 0:00:11.1]} 41. e5 {[%clk 0:00:06]} 41... Be7 {[%clk
0:00:11.2]} 42. Nf4 {[%clk 0:00:04.9]} 42... Rfc8 {[%clk 0:00:10.8]} 43. Nd5
{[%clk 0:00:05.9]} 43... Rc1 {[%clk 0:00:11.5]} 44. Nxe7 {[%clk 0:00:03.4]} 0-1

[Event "*** Titled Tuesday Blitz"]
[Site "Chess.com"]
[Date "2018.09.04"]
[Round "3"]
[White "wannabe2700"]
[Black "Mikhail_Golubev"]
[Result "1-0"]
[WhiteElo "2593"]
[BlackElo "2416"]
[TimeControl "180+2"]
[EndTime "14:12:55 PDT"]
[Termination "wannabe2700 won on time"]

1. d4 {[%clk 0:03:01.9]} 1... Nf6 {[%clk 0:02:59.9]} 2. c4 {[%clk 0:03:03.3]}
2... g6 {[%clk 0:02:59.2]} 3. f3 {[%clk 0:03:04.1]} 3... Bg7 {[%clk 0:02:59]} 4.
e4 {[%clk 0:03:05.3]} 4... O-O {[%clk 0:02:59.1]} 5. Nc3 {[%clk 0:03:07.2]} 5...
d6 {[%clk 0:02:59.7]} 6. Nge2 {[%clk 0:03:09.1]} 6... a6 {[%clk 0:02:59.2]} 7.
Be3 {[%clk 0:03:10.2]} 7... Nbd7 {[%clk 0:02:59.4]} 8. g4 {[%clk 0:03:11.3]}
8... b5 {[%clk 0:02:56.5]} 9. h4 {[%clk 0:03:08.7]} 9... Nb6 {[%clk 0:02:46.9]}
10. cxb5 {[%clk 0:03:04.3]} 10... axb5 {[%clk 0:02:46.2]} 11. Nxb5 {[%clk
0:03:06.2]} 11... Nc4 {[%clk 0:02:28.2]} 12. Bc1 {[%clk 0:03:06.6]} 12... Rb8
{[%clk 0:02:07.3]} 13. Nec3 {[%clk 0:02:58]} 13... Nxb2 {[%clk 0:02:05.8]} 14.
Bxb2 {[%clk 0:02:58.4]} 14... c6 {[%clk 0:02:06.5]} 15. a4 {[%clk 0:02:53.8]}
15... cxb5 {[%clk 0:02:01]} 16. axb5 {[%clk 0:02:55.7]} 16... h5 {[%clk
0:01:53.8]} 17. g5 {[%clk 0:02:56.4]} 17... Nd7 {[%clk 0:01:54.3]} 18. Be2
{[%clk 0:02:56]} 18... e5 {[%clk 0:01:52.4]} 19. Nd5 {[%clk 0:02:49.3]} 19...
Bb7 {[%clk 0:01:48.9]} 20. Nb4 {[%clk 0:02:38.2]} 20... Qb6 {[%clk 0:01:39.7]}
21. O-O {[%clk 0:02:31.9]} 21... exd4 {[%clk 0:01:37.8]} 22. Kg2 {[%clk
0:02:09]} 22... Rfe8 {[%clk 0:01:30.1]} 23. Qd2 {[%clk 0:01:54.7]} 23... Nc5
{[%clk 0:01:23.2]} 24. Ra3 {[%clk 0:01:54.3]} 24... Rxe4 {[%clk 0:00:33.3]} 25.
fxe4 {[%clk 0:01:56.2]} 25... Nxe4 {[%clk 0:00:34.2]} 26. Qf4 {[%clk 0:01:52.9]}
26... Nd2+ {[%clk 0:00:18.4]} 27. Rff3 {[%clk 0:01:36.8]} 27... Nxf3 {[%clk
0:00:14]} 28. Bxf3 {[%clk 0:01:38.7]} 28... Qxb5 {[%clk 0:00:13.8]} 29. Nd3
{[%clk 0:01:37.8]} 29... Re8 {[%clk 0:00:11.2]} 30. Ra7 {[%clk 0:01:28.3]} 30...
Re2+ {[%clk 0:00:07.6]} 31. Kh3 {[%clk 0:01:22.4]} 31... Qxd3 {[%clk 0:00:05.9]}
32. Rxb7 {[%clk 0:01:21.7]} 32... Rh2+ {[%clk 0:00:03.2]} 33. Kxh2 {[%clk
0:01:16.3]} 33... Be5 {[%clk 0:00:03.8]} 34. Qxe5 {[%clk 0:00:49.3]} 34... dxe5
{[%clk 0:00:04.6]} 35. Bg2 {[%clk 0:00:51.2]} 35... Qe2 {[%clk 0:00:04.6]} 36.
Rb8+ {[%clk 0:00:46.3]} 36... Kh7 {[%clk 0:00:04.8]} 37. Rb7 {[%clk 0:00:38.2]}
37... d3 {[%clk 0:00:04.4]} 38. Rxf7+ {[%clk 0:00:18.5]} 38... Kg8 {[%clk
0:00:04.8]} 39. Rd7 {[%clk 0:00:19.7]} 39... d2 {[%clk 0:00:05.3]} 40. Rd8+
{[%clk 0:00:17.4]} 40... Kf7 {[%clk 0:00:04.9]} 41. Kh3 {[%clk 0:00:16.4]} 41...
d1=Q {[%clk 0:00:03.8]} 42. Rxd1 {[%clk 0:00:17.4]} 42... Qxd1 {[%clk
0:00:04.7]} 43. Bxe5 {[%clk 0:00:19.3]} 43... Qd3+ {[%clk 0:00:03.3]} 44. Bg3
{[%clk 0:00:21.2]} 44... Qf5+ {[%clk 0:00:02.8]} 45. Kh2 {[%clk 0:00:23.1]}
45... Kg8 {[%clk 0:00:02.8]} 46. Bh3 {[%clk 0:00:25]} 1-0

[Event "*** Titled Tuesday Blitz"]
[Site "Chess.com"]
[Date "2018.09.04"]
[Round "3"]
[White "amiralfio"]
[Black "jacky72"]
[Result "1-0"]
[WhiteElo "2458"]
[BlackElo "2649"]
[TimeControl "180+2"]
[EndTime "14:12:58 PDT"]
[Termination "amiralfio won by checkmate"]

1. d4 {[%clk 0:03:01.9]} 1... Nf6 {[%clk 0:03:00.4]} 2. Nf3 {[%clk 0:03:00.8]}
2... g6 {[%clk 0:03:01.6]} 3. c4 {[%clk 0:02:58.9]} 3... Bg7 {[%clk 0:03:03]} 4.
Nc3 {[%clk 0:03:00.5]} 4... O-O {[%clk 0:03:03.6]} 5. e4 {[%clk 0:03:01.2]} 5...
d6 {[%clk 0:03:01.9]} 6. h3 {[%clk 0:03:02.5]} 6... e5 {[%clk 0:03:01.5]} 7. d5
{[%clk 0:03:02.9]} 7... a5 {[%clk 0:03:02.7]} 8. g4 {[%clk 0:03:03.8]} 8... Na6
{[%clk 0:03:03.4]} 9. Be3 {[%clk 0:03:01.8]} 9... Nd7 {[%clk 0:03:03.7]} 10. a3
{[%clk 0:02:57.3]} 10... Nb6 {[%clk 0:02:44.6]} 11. Nd2 {[%clk 0:02:48.8]} 11...
f5 {[%clk 0:02:44.1]} 12. gxf5 {[%clk 0:02:49.1]} 12... gxf5 {[%clk 0:02:46]}
13. exf5 {[%clk 0:02:49.9]} 13... Nc5 {[%clk 0:02:47.1]} 14. Bxc5 {[%clk
0:02:47.7]} 14... dxc5 {[%clk 0:02:48.3]} 15. Bd3 {[%clk 0:02:46.8]} 15... Bxf5
{[%clk 0:02:47.6]} 16. Bxf5 {[%clk 0:02:45.4]} 16... Rxf5 {[%clk 0:02:49.5]} 17.
Nde4 {[%clk 0:02:46.2]} 17... Kh8 {[%clk 0:02:48.1]} 18. Qe2 {[%clk 0:02:45.3]}
18... Bh6 {[%clk 0:02:46.1]} 19. Nxc5 {[%clk 0:02:41.1]} 19... Qh4 {[%clk
0:02:41.6]} 20. N5e4 {[%clk 0:02:34.2]} 20... Rg8 {[%clk 0:02:35.3]} 21. c5
{[%clk 0:02:33]} 21... Nd7 {[%clk 0:02:35.2]} 22. d6 {[%clk 0:02:28.8]} 22...
cxd6 {[%clk 0:02:31.5]} 23. cxd6 {[%clk 0:02:30.7]} 23... Rf4 {[%clk 0:02:29.2]}
24. Rd1 {[%clk 0:02:16.3]} 24... b5 {[%clk 0:02:30]} 25. b4 {[%clk 0:01:55.8]}
25... axb4 {[%clk 0:02:29.5]} 26. axb4 {[%clk 0:01:57.7]} 26... Rc8 {[%clk
0:02:30.2]} 27. Rg1 {[%clk 0:01:44]} 27... Qxh3 {[%clk 0:02:30.9]} 28. Rd3
{[%clk 0:01:29.7]} 28... Qf5 {[%clk 0:02:22.7]} 29. Rdg3 {[%clk 0:01:24.5]}
29... Ra8 {[%clk 0:02:07.9]} 30. Qa2 {[%clk 0:00:55.7]} 30... Rxe4+ {[%clk
0:02:05]} 31. Kf1 {[%clk 0:00:56.8]} 31... Qf8 {[%clk 0:01:49.6]} 32. Qe6 {[%clk
0:00:37.9]} 32... Ra1+ {[%clk 0:01:37.1]} 33. Kg2 {[%clk 0:00:37.5]} 33... Nf6
{[%clk 0:01:25.7]} 34. Rxa1 {[%clk 0:00:32.4]} 34... Rf4 {[%clk 0:01:17.7]} 35.
Ra2 {[%clk 0:00:14]} 35... Nh5 {[%clk 0:01:10.9]} 36. Qxe5+ {[%clk 0:00:12.3]}
36... Ng7 {[%clk 0:01:06]} 37. d7 {[%clk 0:00:10.7]} 37... Rf7 {[%clk
0:01:06.8]} 38. Qd5 {[%clk 0:00:08.6]} 38... Nh5 {[%clk 0:00:49.9]} 39. Qxh5
{[%clk 0:00:03.3]} 39... Rxd7 {[%clk 0:00:51.1]} 40. Qe5+ {[%clk 0:00:03.9]}
40... Bg7 {[%clk 0:00:51.9]} 41. Qc5 {[%clk 0:00:04.4]} 41... Qf6 {[%clk
0:00:49.9]} 42. Ra8+ {[%clk 0:00:04.4]} 42... Rd8 {[%clk 0:00:51.3]} 43. Rxd8+
{[%clk 0:00:05.1]} 43... Qxd8 {[%clk 0:00:53.2]} 44. Nxb5 {[%clk 0:00:06]} 44...
Qa8+ {[%clk 0:00:53.5]} 45. Kh2 {[%clk 0:00:06.9]} 45... Qe4 {[%clk 0:00:53.9]}
46. Nd6 {[%clk 0:00:07.8]} 46... Qh4+ {[%clk 0:00:54.5]} 47. Kg2 {[%clk
0:00:08.5]} 47... h5 {[%clk 0:00:50.5]} 48. Nf7+ {[%clk 0:00:09.4]} 48... Kg8
{[%clk 0:00:52]} 49. Ng5 {[%clk 0:00:10]} 49... Qf4 {[%clk 0:00:50.7]} 50. Qc8+
{[%clk 0:00:10.6]} 50... Bf8 {[%clk 0:00:52]} 51. Qe6+ {[%clk 0:00:10.6]} 51...
Kh8 {[%clk 0:00:51.8]} 52. Nf7+ {[%clk 0:00:06.9]} 52... Qxf7 {[%clk 0:00:51.4]}
53. Qxf7 {[%clk 0:00:07.2]} 53... Bg7 {[%clk 0:00:52.8]} 54. Qxg7# {[%clk
0:00:07.7]} 1-0